bitfinex/quotes_SOLUSD_20230404
["timestamp","ask_amount","ask_price","bid_price","bid_amount"]
[1680629492109,20.0,20.993,20.983,19.062]
[1680629492325,20.0,20.998,20.983,19.062]
[1680629492508,17.0,20.997,20.983,19.062]
[1680629492710,20.0,20.996,20.983,19.062]
[1680629492910,17.0,20.995,20.983,19.062]
[1680629493413,20.0,20.994,20.983,19.062]
[1680629493617,17.0,20.993,20.983,19.062]
[1680629494221,20.0,20.994,20.983,19.062]
[1680629494415,109.223,20.999,20.984,40.0]
[1680629494615,17.0,20.998,20.984,40.0]
[1680629496113,109.223,20.999,20.987,19.059]
[1680629499330,17.0,20.998,20.987,19.059]
[1680629500811,109.223,20.999,20.988,17.0]
[1680629501017,109.223,20.999,20.991,19.055]
[1680629502035,109.223,20.999,20.986,19.059]
[1680629503837,17.0,20.998,20.986,19.059]
[1680629512052,109.223,20.999,20.986,19.059]
[1680629512266,109.223,20.999,20.987,20.0]
[1680629513450,17.0,20.998,20.987,20.0]
[1680629516150,17.0,20.998,20.986,19.059]
[1680629519442,109.223,20.999,20.986,19.059]
[1680629521653,109.223,20.999,20.987,20.0]
[1680629522045,109.223,20.999,20.99,19.056]
[1680629522251,44.86740396,21.008,20.99,19.056]
[1680629522551,111.0037,21.01,20.996,19.05]
[1680629523054,20.0,21.009,20.992,20.0]
[1680629523261,20.0,21.009,20.991,19.055]
[1680629523450,111.0037,21.01,20.992,20.0]
[1680629524046,20.0,21.009,20.989,40.0]
[1680629524249,20.0,21.009,20.989,20.0]
[1680629524542,20.0,21.008,20.985,19.06]
[1680629524757,20.0,21.008,20.985,137.7056]
[1680629524965,20.0,21.008,20.986,20.0]
[1680629525869,17.0,21.007,20.986,20.0]
[1680629526055,20.0,21.006,20.987,17.0]
[1680629526255,17.0,21.005,20.986,20.0]
[1680629529347,17.0,21.005,20.99,19.056]
[1680629530247,17.0,21.005,20.986,27.19900344]
[1680629530863,17.0,21.005,20.988,19.058]
[1680629532853,17.0,21.005,20.989,20.0]
[1680629533563,17.0,21.005,20.991,19.055]
[1680629536263,17.0,21.005,20.986,19.059]
[1680629536767,20.0,21.004,20.983,27.19900344]
[1680629536964,17.0,21.003,20.983,7.19900344]
[1680629537555,27.11,21.0,20.983,7.19900344]
[1680629537759,132.2467,20.999,20.983,7.19900344]
[1680629538157,132.2467,20.999,20.985,19.06]
[1680629538669,115.2467,20.999,20.985,19.06]
[1680629538872,115.2467,20.999,20.986,20.0]
[1680629539061,115.2467,20.999,20.989,19.056]
[1680629539370,115.2467,20.999,20.986,20.0]
[1680629540262,115.2467,20.999,20.988,19.057]
[1680629544371,17.0,20.998,20.988,19.057]
[1680629544867,17.0,20.998,20.983,26.26100344]
[1680629545664,20.0,20.997,20.983,19.062]
[1680629545967,17.0,20.996,20.983,19.062]
[1680629546352,17.0,20.998,20.983,19.062]
[1680629547772,17.0,20.998,20.984,20.0]
[1680629551082,115.2467,20.999,20.984,20.0]
[1680629551465,17.0,20.998,20.984,20.0]
[1680629552579,17.0,20.998,20.983,46.26100344]
[1680629552871,17.0,20.998,20.983,26.26100344]
[1680629555177,17.0,20.998,20.984,20.0]
[1680629555366,17.0,20.998,20.983,26.26100344]
[1680629556681,20.0,20.997,20.982,14.0681519]
[1680629556883,17.0,20.996,20.981,20.0]
[1680629557083,17.0,20.996,20.982,20.0]
[1680629557283,17.0,20.998,20.982,20.0]
[1680629560087,20.0,20.997,20.982,20.0]
[1680629560281,17.0,20.996,20.982,20.0]
[1680629560986,17.0,20.997,20.982,20.0]
[1680629561489,17.0,20.998,20.982,20.0]
[1680629562285,17.0,20.998,20.982,39.063]
[1680629562486,115.2467,20.999,20.983,20.0]
[1680629563484,115.2467,20.999,20.982,39.063]
[1680629563877,17.0,20.998,20.982,39.063]
[1680629564584,17.0,20.998,20.982,19.063]
[1680629564883,17.0,20.998,20.981,14.15108341]
[1680629564884,20.0,20.997,20.981,14.15108341]
[1680629565090,20.0,20.997,20.978,19.067]
[1680629565279,17.0,20.996,20.978,19.067]
[1680629565487,20.0,20.994,20.978,19.067]
[1680629565679,17.0,20.993,20.978,19.067]
[1680629566390,20.0,20.992,20.978,19.067]
[1680629566589,17.0,20.991,20.978,19.067]
[1680629567084,20.0,20.992,20.978,19.067]
[1680629567298,17.0,20.991,20.978,19.067]
[1680629569391,17.0,20.993,20.978,19.067]
[1680629569587,20.0,20.995,20.978,19.067]
[1680629569789,20.0,20.996,20.978,19.067]
[1680629569993,20.0,20.997,20.978,19.067]
[1680629570195,20.0,20.996,20.978,19.067]
[1680629570883,17.0,20.995,20.978,19.067]
[1680629571084,20.0,20.993,20.978,19.067]
[1680629571285,17.0,20.992,20.978,19.067]
[1680629571789,17.0,20.992,20.98,34.151084]
[1680629579717,27.11,20.99,20.98,34.151084]
[1680629579909,17.0,20.989,20.98,34.151084]
[1680629580117,20.0,20.988,20.98,34.151084]
[1680629580298,17.0,20.987,20.98,34.151084]
[1680629580809,20.0,20.986,20.98,34.151084]
[1680629581015,17.0,20.985,20.98,34.151084]
[1680629581197,17.0,20.987,20.98,34.151084]
[1680629582006,17.0,20.987,20.971,118.5293]
[1680629582194,17.0,20.987,20.972,20.0]
[1680629582714,20.0,20.986,20.972,20.0]
[1680629582887,17.0,20.985,20.972,20.0]
[1680629584203,110.6753,20.988,20.972,20.0]
[1680629584513,20.0,20.987,20.972,20.0]
[1680629584915,110.6753,20.988,20.972,20.0]
[1680629585398,20.0,20.987,20.972,20.0]
[1680629586414,17.0,20.986,20.972,20.0]
[1680629588109,17.0,20.987,20.973,20.0]
[1680629588306,17.0,20.987,20.974,20.0]
[1680629589404,17.0,20.987,20.973,20.0]
[1680629590201,20.0,20.986,20.973,20.0]
[1680629590501,17.0,20.985,20.972,20.0]
[1680629591298,17.0,20.986,20.972,20.0]
[1680629591511,17.0,20.987,20.972,20.0]
[1680629591710,110.6753,20.988,20.976,19.069]
[1680629592307,110.6753,20.988,20.977,20.0]
[1680629593807,17.0,20.987,20.976,19.069]
[1680629601020,110.6753,20.988,20.976,19.069]
[1680629601706,27.19900344,20.997,20.976,19.069]
[1680629601901,20.0,20.994,20.977,37.0]
[1680629602111,20.0,20.994,20.977,20.0]
[1680629602312,20.0,20.994,20.976,19.069]
[1680629602513,20.0,20.993,20.976,19.069]
[1680629603103,17.0,20.992,20.976,19.069]
[1680629607626,17.0,20.992,20.972,20.0]
[1680629608039,20.0,20.991,20.972,20.0]
[1680629608324,17.0,20.99,20.972,20.0]
[1680629609230,17.0,20.99,20.973,20.0]
[1680629609427,17.0,20.99,20.974,20.0]
[1680629610434,17.0,20.99,20.973,20.0]
[1680629610635,17.0,20.99,20.972,20.0]
[1680629611332,20.0,20.989,20.972,20.0]
[1680629611533,17.0,20.988,20.972,20.0]
[1680629611723,126.6429,20.988,20.972,20.0]
[1680629611918,40.0,20.987,20.97,27.05]
[1680629612120,17.0,20.986,20.969,14.06393221]
[1680629612338,20.0,20.985,20.964,154.03024116]
[1680629612521,17.0,20.984,20.968,172.25921044]
[1680629612724,20.0,20.983,20.968,172.25921044]
[1680629612923,17.0,20.982,20.968,172.25921044]
[1680629614839,20.0,20.981,20.968,172.25921044]
[1680629615138,17.0,20.98,20.968,172.25921044]
[1680629615540,17.0,20.982,20.968,172.25921044]
[1680629619631,20.0,20.983,20.968,172.25921044]
[1680629619826,20.0,20.987,20.97,47.11]
[1680629620236,20.0,20.987,20.971,19.073]
[1680629620639,20.0,20.987,20.972,20.0]
[1680629621029,17.0,20.986,20.972,20.0]
[1680629621342,20.0,20.985,20.972,20.0]
[1680629621546,17.0,20.984,20.972,20.0]
[1680629621746,17.0,20.984,20.971,19.073]
[1680629621954,20.0,20.983,20.971,19.073]
[1680629622445,14.12105349,20.992,20.973,20.0]
[1680629622644,17.0,20.987,20.974,20.0]
[1680629626042,17.0,20.987,20.973,20.0]
[1680629627547,17.0,20.987,20.971,19.073]
[1680629627548,20.0,20.986,20.971,19.073]
[1680629627728,17.0,20.985,20.971,19.073]
[1680629627934,20.0,20.984,20.971,19.073]
[1680629628239,17.0,20.983,20.971,19.073]
[1680629629728,17.0,20.983,20.97,27.11]
[1680629630041,17.0,20.983,20.969,20.0]
[1680629631932,20.0,20.984,20.969,20.0]
[1680629632131,21.32005693,20.992,20.969,20.0]
[1680629632132,17.0,20.983,20.969,20.0]
[1680629633654,17.0,20.985,20.969,20.0]
[1680629633854,20.0,20.984,20.969,20.0]
[1680629634041,17.0,20.983,20.969,20.0]
[1680629637546,17.0,20.983,20.971,20.0]
[1680629643563,20.0,20.984,20.971,20.0]
[1680629643758,20.0,20.986,20.971,20.0]
[1680629643962,20.0,20.987,20.971,20.0]
[1680629644150,14.12105349,20.992,20.971,20.0]
[1680629644354,14.12105349,20.992,20.972,20.0]
[1680629644752,20.0,20.994,20.973,20.0]
[1680629644947,14.36367387,20.993,20.974,20.0]
[1680629645366,17.0,20.987,20.974,20.0]
[1680629649452,17.0,20.987,20.969,20.0]
[1680629649958,17.0,20.987,20.968,20.0]
[1680629650158,17.0,20.987,20.969,20.0]
[1680629650867,17.0,20.987,20.968,20.0]
[1680629651069,17.0,20.987,20.971,19.073]
[1680629651272,17.0,20.987,20.972,20.0]
[1680629656879,17.0,20.987,20.971,19.073]
[1680629657082,20.0,20.986,20.962,58.63124116]
[1680629657267,27.11,20.98,20.957,19.085]
[1680629657470,54.06,20.97,20.944,149.38336203]
[1680629657886,54.06,20.97,20.944,37.68916203]
[1680629657887,27.11,20.96,20.944,37.68916203]
[1680629658182,27.11,20.96,20.934,149.40136583]
[1680629658497,37.0,20.959,20.935,37.70536468]
[1680629658785,26.99476461,20.95,20.934,111.6942]
[1680629659171,17.0,20.949,20.934,111.6942]
[1680629660285,226.85166504,20.949,20.925,37.72338397]
[1680629662982,40.51,20.95,20.927,115.1755]
[1680629663282,20.0,20.949,20.927,115.1755]
[1680629663491,20.0,20.949,20.928,20.0]
[1680629663870,20.0,20.949,20.928,27.19900344]
[1680629664075,40.51,20.95,20.929,17.0]
[1680629664381,40.51,20.95,20.931,20.0]
[1680629664581,40.51,20.95,20.932,20.0]
[1680629665071,40.51,20.95,20.933,20.0]
[1680629665391,40.51,20.95,20.934,20.0]
[1680629665774,17.0,20.949,20.934,20.0]
[1680629665975,20.0,20.948,20.932,20.0]
[1680629666286,37.0,20.947,20.905,24.92533086]
[1680629666490,20.0,20.946,20.919,66.861]
[1680629666791,17.0,20.945,20.919,74.06000344]
[1680629666997,20.0,20.944,20.919,88.43252269]
[1680629667174,17.0,20.943,20.919,88.43252269]
[1680629667369,17.0,20.943,20.92,20.0]
[1680629669695,33.58268375,20.96,20.927,122.37450344]
[1680629669877,40.77,20.95,20.928,37.0]
[1680629670193,40.77,20.95,20.929,7.19900344]
[1680629670489,40.77,20.95,20.931,20.0]
[1680629670677,40.77,20.95,20.932,20.0]
[1680629670880,17.0,20.949,20.932,27.19900344]
[1680629672298,20.0,20.948,20.932,27.19900344]
[1680629672478,17.0,20.947,20.932,27.19900344]
[1680629673298,17.0,20.947,20.932,20.0]
[1680629673484,17.0,20.947,20.927,20.0]
[1680629673794,17.0,20.947,20.928,27.19900344]
[1680629673974,17.0,20.947,20.929,20.0]
[1680629674176,17.0,20.947,20.929,27.19900344]
[1680629676889,20.0,20.946,20.925,111.6768]
[1680629677188,20.0,20.944,20.925,111.6768]
[1680629677390,37.0,20.943,20.925,111.6768]
[1680629678190,81.46,20.95,20.927,20.0]
[1680629678386,81.46,20.95,20.93,19.11]
[1680629678585,14.49868375,20.96,20.93,100.3]
[1680629678907,14.40668468,20.974,20.942,19.099]
[1680629679199,40.41,20.98,20.954,19.089]
[1680629679396,40.41,20.98,20.955,20.0]
[1680629679578,40.41,20.98,20.958,19.085]
[1680629679984,40.41,20.98,20.959,20.0]
[1680629680188,40.41,20.98,20.96,19.083]
[1680629680393,40.41,20.98,20.961,20.0]
[1680629681396,40.41,20.98,20.964,19.08]
[1680629682299,54.15,20.98,20.964,19.08]
[1680629683400,17.0,20.976,20.964,19.08]
[1680629684384,17.0,20.978,20.964,19.08]
[1680629684587,17.0,20.978,20.959,19.084]
[1680629684787,20.0,20.977,20.959,19.084]
[1680629685086,20.0,20.975,20.959,19.084]
[1680629685297,20.0,20.974,20.959,19.084]
[1680629685496,37.0,20.974,20.959,19.084]
[1680629685885,20.0,20.973,20.959,19.084]
[1680629686093,17.0,20.972,20.959,19.084]
[1680629687316,17.0,20.973,20.959,19.084]
[1680629692292,17.0,20.973,20.96,20.0]
[1680629692912,17.0,20.973,20.959,19.084]
[1680629693909,17.0,20.973,20.955,39.088]
[1680629694410,20.0,20.974,20.956,7.19900344]
[1680629694789,20.0,20.978,20.956,7.19900344]
[1680629695503,110.9794,20.977,20.956,7.19900344]
[1680629695694,20.0,20.976,20.956,7.19900344]
[1680629695895,17.0,20.975,20.958,19.084]
[1680629696198,20.0,20.974,20.958,19.084]
[1680629696519,17.0,20.973,20.958,19.084]
[1680629705309,110.9794,20.977,20.959,20.0]
[1680629705517,110.9794,20.977,20.959,27.19900344]
[1680629705707,17.0,20.976,20.959,20.0]
[1680629705906,20.0,20.975,20.959,20.0]
[1680629706116,17.0,20.974,20.959,20.0]
[1680629706701,17.0,20.974,20.96,7.19900344]
[1680629706903,17.0,20.974,20.961,20.0]
[1680629707315,17.0,20.974,20.961,27.19900344]
[1680629707508,110.9794,20.977,20.962,19.082]
[1680629708009,110.9794,20.977,20.964,20.0]
[1680629708216,110.9794,20.977,20.963,27.19900344]
[1680629708515,110.9794,20.977,20.964,7.19900344]
[1680629711221,17.0,20.976,20.964,7.19900344]
[1680629711616,17.0,20.976,20.963,20.0]
[1680629713222,17.0,20.976,20.966,19.078]
[1680629718626,37.0,20.982,20.967,7.19900344]
[1680629718821,37.0,20.982,20.968,20.0]
[1680629719329,37.0,20.982,20.967,27.19900344]
[1680629719530,37.0,20.982,20.967,7.19900344]
[1680629719726,37.0,20.982,20.963,20.0]
[1680629719727,20.0,20.981,20.963,20.0]
[1680629720030,20.0,20.981,20.964,20.0]
[1680629720230,17.0,20.98,20.962,20.0]
[1680629721131,17.0,20.98,20.963,20.0]
[1680629721334,17.0,20.98,20.964,20.0]
[1680629721721,17.0,20.98,20.965,20.0]
[1680629722516,17.0,20.98,20.964,20.0]
[1680629722929,17.0,20.98,20.963,20.0]
[1680629723523,17.0,20.98,20.964,20.0]
[1680629730140,17.0,20.98,20.963,20.0]
[1680629731944,17.0,20.98,20.962,20.0]
[1680629732347,17.0,20.979,20.962,20.0]
[1680629732545,20.0,20.98,20.962,20.0]
[1680629732749,17.0,20.979,20.962,20.0]
[1680629733448,17.0,20.981,20.962,20.0]
[1680629734749,17.0,20.981,20.962,40.0]
[1680629735053,54.15,20.98,20.961,132.8821]
[1680629735228,37.0,20.979,20.956,19.086]
[1680629735639,20.0,20.978,20.956,19.086]
[1680629735947,20.0,20.976,20.956,19.086]
[1680629736154,37.0,20.975,20.956,19.086]
[1680629736355,154.4507,20.975,20.956,19.086]
[1680629736645,154.4507,20.975,20.957,20.0]
[1680629738952,154.4507,20.975,20.956,19.086]
[1680629745164,154.4507,20.975,20.954,20.0]
[1680629745466,20.0,20.974,20.954,20.0]
[1680629745666,17.0,20.973,20.954,20.0]
[1680629746571,17.0,20.973,20.953,14.04693367]
[1680629746757,17.0,20.973,20.954,20.0]
[1680629747463,20.0,20.972,20.952,20.0]
[1680629747669,26.86,20.97,20.951,20.0]
[1680629747866,17.0,20.969,20.951,20.0]
[1680629750370,137.4507,20.975,20.952,20.0]
[1680629750855,20.0,20.974,20.952,20.0]
[1680629751048,20.0,20.973,20.952,20.0]
[1680629751857,17.0,20.972,20.952,20.0]
[1680629754570,17.0,20.972,20.952,20.0]
[1680629757171,20.0,20.971,20.952,20.0]
[1680629757356,17.0,20.97,20.952,40.0]
[1680629757552,17.0,20.97,20.953,20.0]
[1680629757959,20.0,20.969,20.953,20.0]
[1680629758177,17.0,20.968,20.953,20.0]
[1680629759272,20.0,20.967,20.953,20.0]
[1680629759472,17.0,20.966,20.953,20.0]
[1680629760672,17.0,20.968,20.953,20.0]
[1680629761061,17.0,20.969,20.953,20.0]
[1680629762272,20.0,20.968,20.953,20.0]
[1680629762461,17.0,20.967,20.953,20.0]
[1680629763368,17.0,20.967,20.952,20.0]
[1680629763562,20.0,20.966,20.952,20.0]
[1680629763761,17.0,20.965,20.952,20.0]
[1680629763966,112.6728,20.966,20.953,20.0]
[1680629764967,112.6728,20.966,20.954,20.0]
[1680629766385,17.0,20.965,20.954,20.0]
[1680629767976,17.0,20.965,20.953,20.0]
[1680629769681,112.6728,20.966,20.953,20.0]
[1680629769980,112.6728,20.966,20.954,20.0]
[1680629770578,112.6728,20.966,20.953,20.0]
[1680629771391,17.0,20.965,20.953,20.0]
[1680629772987,17.0,20.965,20.951,20.0]
[1680629774603,17.0,20.965,20.948,56.09556762]
[1680629774800,20.0,20.964,20.944,111.4699]
[1680629774975,17.0,20.963,20.944,111.4699]
[1680629775172,26.94,20.96,20.941,20.0]
[1680629775372,17.0,20.959,20.942,20.0]
[1680629776099,20.0,20.958,20.942,20.0]
[1680629776282,17.0,20.957,20.942,20.0]
[1680629776590,17.0,20.957,20.939,20.0]
[1680629776776,17.0,20.957,20.937,20.0]
[1680629776983,17.0,20.959,20.937,20.0]
[1680629777285,17.0,20.959,20.938,20.0]
[1680629777483,17.0,20.959,20.939,20.0]
[1680629777992,17.0,20.959,20.949,38.171036]
[1680629782393,20.0,20.965,20.949,38.171036]
[1680629782893,20.0,20.963,20.949,38.171036]
[1680629783884,17.0,20.962,20.949,38.171036]
[1680629787982,17.0,20.963,20.949,38.171036]
[1680629790500,20.0,20.962,20.941,20.0]
[1680629790802,17.0,20.961,20.942,20.0]
[1680629791902,20.0,20.959,20.942,20.0]
[1680629792107,17.0,20.958,20.942,20.0]
[1680629793287,17.0,20.959,20.942,20.0]
[1680629794000,17.0,20.959,20.939,20.0]
[1680629794201,20.0,20.958,20.939,20.0]
[1680629794405,17.0,20.957,20.939,20.0]
[1680629795097,17.0,20.957,20.93,78.89533086]
[1680629795285,20.0,20.956,20.93,53.97]
[1680629795487,17.0,20.955,20.93,26.97]
[1680629795804,20.0,20.954,20.935,123.50041669]
[1680629796005,37.0,20.953,20.935,123.50041669]
[1680629796218,17.0,20.953,20.935,123.50041669]
[1680629796606,20.0,20.952,20.935,123.50041669]
[1680629796807,17.0,20.951,20.935,123.50041669]
[1680629797289,20.0,20.949,20.929,42.14945651]
[1680629797494,17.0,20.948,20.928,116.466]
[1680629797697,17.0,20.948,20.929,20.0]
[1680629797888,17.0,20.949,20.929,20.0]
[1680629798506,17.0,20.949,20.931,20.0]
[1680629798695,17.0,20.949,20.933,20.0]
[1680629798896,17.0,20.949,20.934,20.0]
[1680629799989,17.0,20.949,20.932,20.0]
[1680629800186,17.0,20.949,20.933,20.0]
[1680629800391,17.0,20.949,20.934,20.0]
[1680629801590,110.6562,20.952,20.935,20.0]
[1680629801894,20.0,20.954,20.935,20.0]
[1680629802401,20.0,20.954,20.936,17.0]
[1680629802608,20.0,20.954,20.937,20.0]
[1680629803809,17.0,20.953,20.937,20.0]
[1680629805989,17.0,20.953,20.94,20.0]
[1680629806194,27.09,20.96,20.941,20.0]
[1680629806408,114.1333,20.967,20.942,17.0]
[1680629806590,20.0,20.965,20.943,20.0]
[1680629806801,20.0,20.964,20.944,20.0]
[1680629807003,20.0,20.963,20.944,20.0]
[1680629807304,17.0,20.962,20.944,139.7882]
[1680629807811,17.0,20.962,20.944,119.7882]
[1680629808408,17.0,20.962,20.945,20.0]
[1680629810212,20.0,20.961,20.944,239.1264]
[1680629810414,17.0,20.96,20.944,239.1264]
[1680629810816,17.0,20.962,20.945,20.0]
[1680629813409,17.0,20.962,20.944,239.1264]
[1680629814106,17.0,20.962,20.945,20.0]
[1680629815631,20.0,20.961,20.944,239.1264]
[1680629815816,17.0,20.96,20.944,239.1264]
[1680629817923,17.0,20.962,20.944,239.1264]
[1680629819226,20.0,20.959,20.944,239.1264]
[1680629819433,17.0,20.958,20.944,239.1264]
[1680629827130,20.0,20.957,20.943,20.0]
[1680629827325,17.0,20.956,20.938,20.0]
[1680629828533,117.589,20.955,20.938,20.0]
[1680629828735,17.0,20.954,20.938,20.0]
[1680629830836,54.08,20.96,20.941,20.0]
[1680629831029,54.08,20.96,20.942,20.0]
[1680629831540,54.08,20.96,20.944,20.0]
[1680629831848,27.09,20.96,20.944,20.0]
[1680629832035,20.0,20.965,20.944,20.0]
[1680629832229,20.0,20.964,20.944,20.0]
[1680629833037,17.0,20.963,20.944,248.738]
[1680629833236,20.0,20.964,20.944,248.738]
[1680629833943,20.0,20.964,20.947,19.095]
[1680629834461,20.0,20.965,20.947,19.095]
[1680629834747,20.0,20.968,20.952,19.091]
[1680629836926,17.0,20.967,20.952,19.091]
[1680629837132,20.0,20.966,20.952,19.091]
[1680629837330,17.0,20.965,20.952,19.091]
[1680629837530,20.0,20.964,20.948,19.094]
[1680629837736,17.0,20.963,20.948,19.094]
[1680629845640,17.0,20.963,20.944,262.47836402]
[1680629846042,17.0,20.963,20.945,7.19900344]
[1680629846347,20.0,20.962,20.945,7.19900344]
[1680629846534,17.0,20.961,20.945,7.19900344]
[1680629848251,17.0,20.961,20.945,27.19900344]
[1680629848445,17.0,20.961,20.945,7.19900344]
[1680629850446,20.0,20.96,20.944,130.4759]
[1680629850643,17.0,20.959,20.944,130.4759]
[1680629852747,17.0,20.959,20.944,111.3779]
[1680629855269,20.0,20.958,20.944,111.3779]
[1680629855451,17.0,20.957,20.944,111.3779]
[1680629867188,26.99,20.96,20.945,20.0]
[1680629867392,119.3863,20.966,20.947,19.095]
[1680629867887,20.0,20.965,20.947,19.095]
[1680629868082,20.0,20.963,20.947,19.095]
[1680629868283,20.0,20.965,20.947,19.095]
[1680629868787,37.0,20.964,20.947,19.095]
[1680629868984,20.0,20.963,20.947,19.095]
[1680629869183,17.0,20.962,20.947,19.095]
[1680629874799,17.0,20.962,20.948,20.0]
[1680629874978,17.0,20.962,20.947,19.095]
[1680629881306,17.0,20.962,20.946,7.19900344]
[1680629881307,17.0,20.962,20.944,231.3434]
[1680629881804,20.0,20.961,20.944,231.3434]
[1680629881999,17.0,20.96,20.944,231.3434]
[1680629882308,43.99,20.96,20.944,231.3434]
[1680629883114,43.99,20.96,20.944,111.3779]
[1680629883317,19.085,20.958,20.937,109.6698]
[1680629883606,54.08,20.95,20.937,109.6698]
[1680629883917,54.08,20.95,20.935,20.0]
[1680629884211,37.0,20.949,20.935,20.0]
[1680629886899,133.1778829,20.948,20.935,20.0]
[1680629887103,20.0,20.946,20.935,20.0]
[1680629887296,20.0,20.946,20.929,117.1078]
[1680629887611,17.0,20.945,20.93,20.0]
[1680629888306,17.0,20.946,20.93,20.0]
[1680629889807,17.0,20.947,20.931,20.0]
[1680629890032,17.0,20.947,20.932,20.0]
[1680629890303,113.3364,20.955,20.932,20.0]
[1680629890505,20.0,20.954,20.933,19.107]
[1680629890709,20.0,20.954,20.934,20.0]
[1680629891003,20.0,20.954,20.935,20.0]
[1680629892494,20.0,20.954,20.936,19.105]
[1680629892705,20.0,20.954,20.937,20.0]
[1680629893892,17.0,20.953,20.937,20.0]
[1680629894401,17.0,20.953,20.936,19.105]
[1680629901418,20.0,20.954,20.936,19.105]
[1680629902923,17.0,20.953,20.936,19.105]
[1680629903400,17.0,20.953,20.934,136.4149]
[1680629903802,20.0,20.952,20.934,136.4149]
[1680629904010,17.0,20.951,20.934,136.4149]
[1680629904919,17.0,20.951,20.935,20.0]
[1680629905105,17.0,20.952,20.935,20.0]
[1680629905305,17.0,20.953,20.935,20.0]
[1680629906433,17.0,20.953,20.934,136.4149]
[1680629906718,17.0,20.953,20.935,20.0]
[1680629909331,17.0,20.953,20.934,136.4149]
[1680629910724,20.0,20.952,20.934,136.4149]
[1680629910927,17.0,20.951,20.934,136.4149]
[1680629912221,17.0,20.952,20.934,136.4149]
[1680629913531,17.0,20.952,20.935,20.0]
[1680629913932,17.0,20.953,20.935,20.0]
[1680629914230,20.0,20.952,20.934,136.4149]
[1680629914430,17.0,20.951,20.934,136.4149]
[1680629918444,17.0,20.952,20.935,20.0]
[1680629918825,17.0,20.951,20.935,20.0]
[1680629919026,17.0,20.952,20.935,20.0]
[1680629920745,17.0,20.952,20.934,136.4149]
[1680629921326,17.0,20.952,20.935,20.0]